[Event "Late-Titled-Tuesday-Blitz-January-23-2024"]
[Site "Chess.com"]
[Date "2024.01.23"]
[Round "10"]
[White "krzyzan94"]
[Black "dosto07"]
[Result "1-0"]
[WhiteElo "2766"]
[BlackElo "2536"]
[TimeControl "180+1"]
[EndTime "15:53:29 PST"]
[Termination "krzyzan94 won on time"]

1. Nf3 {[%clk 0:02:59.5]} 1... d5 {[%clk 0:02:59.7]} 2. c4 {[%clk 0:02:56.8]}
2... d4 {[%clk 0:02:59.3]} 3. b4 {[%clk 0:02:54.2]} 3... c5 {[%clk 0:02:57.8]}
4. e3 {[%clk 0:02:51]} 4... dxe3 {[%clk 0:02:48.7]} 5. fxe3 {[%clk 0:02:50.6]}
5... cxb4 {[%clk 0:02:47.7]} 6. d4 {[%clk 0:02:50.2]} 6... Nf6 {[%clk
0:02:47.9]} 7. Bd3 {[%clk 0:02:48.5]} 7... g6 {[%clk 0:02:42.9]} 8. O-O {[%clk
0:02:47.1]} 8... Bg7 {[%clk 0:02:43.1]} 9. Bb2 {[%clk 0:02:36.5]} 9... O-O
{[%clk 0:02:40.4]} 10. e4 {[%clk 0:02:23.6]} 10... Bg4 {[%clk 0:02:39]} 11. e5
{[%clk 0:02:21.1]} 11... Nfd7 {[%clk 0:02:37.2]} 12. h3 {[%clk 0:02:19.5]} 12...
Bxf3 {[%clk 0:02:31.4]} 13. Qxf3 {[%clk 0:02:20.4]} 13... Nc6 {[%clk 0:02:31.7]}
14. Be4 {[%clk 0:02:13.4]} 14... Rc8 {[%clk 0:02:24]} 15. Kh1 {[%clk 0:02:08.6]}
15... e6 {[%clk 0:02:20.9]} 16. Bxc6 {[%clk 0:01:54.1]} 16... Rxc6 {[%clk
0:02:18.8]} 17. Qe2 {[%clk 0:01:48.4]} 17... Nb6 {[%clk 0:02:12.6]} 18. Nd2
{[%clk 0:01:48.2]} 18... Na4 {[%clk 0:02:07.9]} 19. Ne4 {[%clk 0:01:26.6]} 19...
Nxb2 {[%clk 0:02:06.8]} 20. Qxb2 {[%clk 0:01:27.5]} 20... Rxc4 {[%clk
0:02:06.1]} 21. Nd6 {[%clk 0:01:28.2]} 21... Rc7 {[%clk 0:01:39.7]} 22. Qxb4
{[%clk 0:01:26.6]} 22... Qd7 {[%clk 0:01:34.4]} 23. Rf3 {[%clk 0:01:08.9]} 23...
Bh6 {[%clk 0:01:16]} 24. Raf1 {[%clk 0:01:03.4]} 24... Rc1 {[%clk 0:01:12.1]}
25. Rxc1 {[%clk 0:01:00]} 25... Bxc1 {[%clk 0:01:12]} 26. Ne4 {[%clk 0:00:36.7]}
26... Kg7 {[%clk 0:00:57.9]} 27. Nf6 {[%clk 0:00:20.6]} 27... Qc6 {[%clk
0:00:52.7]} 28. Qe7 {[%clk 0:00:19.7]} 28... Bh6 {[%clk 0:00:37.2]} 29. Kh2
{[%clk 0:00:14.2]} 29... Qc1 {[%clk 0:00:31]} 30. Rg3 {[%clk 0:00:12.5]} 30...
Qf4 {[%clk 0:00:27.5]} 31. Nh5+ {[%clk 0:00:12.5]} 31... Kg8 {[%clk 0:00:23.1]}
32. Nxf4 {[%clk 0:00:13.4]} 32... Bxf4 {[%clk 0:00:22.2]} 33. h4 {[%clk
0:00:11.5]} 33... h5 {[%clk 0:00:20.7]} 34. Kh3 {[%clk 0:00:11.3]} 34... Bxg3
{[%clk 0:00:19.5]} 35. Kxg3 {[%clk 0:00:12.2]} 35... Rc8 {[%clk 0:00:17.6]} 36.
Qxb7 {[%clk 0:00:12.2]} 36... Rc3+ {[%clk 0:00:17.5]} 37. Kf4 {[%clk 0:00:11.4]}
37... Ra3 {[%clk 0:00:18.4]} 38. Kg5 {[%clk 0:00:05.7]} 38... Kg7 {[%clk
0:00:16.3]} 39. Kf4 {[%clk 0:00:02.9]} 39... Ra4 {[%clk 0:00:16.3]} 40. Ke3
{[%clk 0:00:02.6]} 40... Rxa2 {[%clk 0:00:15.4]} 41. Qb3 {[%clk 0:00:02.1]}
41... Ra6 {[%clk 0:00:14.5]} 42. d5 {[%clk 0:00:02.3]} 42... Rb6 {[%clk
0:00:12.8]} 43. Qa2 {[%clk 0:00:02.2]} 43... exd5 {[%clk 0:00:13]} 44. Qxd5
{[%clk 0:00:03.1]} 44... Re6 {[%clk 0:00:12.3]} 45. Kf4 {[%clk 0:00:03.5]} 45...
a6 {[%clk 0:00:12.7]} 46. Qa5 {[%clk 0:00:03.7]} 46... Kg8 {[%clk 0:00:13.2]}
47. Qd8+ {[%clk 0:00:04.3]} 47... Kg7 {[%clk 0:00:13.4]} 48. Ke4 {[%clk
0:00:04.9]} 48... Kh7 {[%clk 0:00:11.9]} 49. Kd5 {[%clk 0:00:05.3]} 49... Kg7
{[%clk 0:00:12.1]} 50. Qd7 {[%clk 0:00:05.5]} 50... Kg8 {[%clk 0:00:12]} 51.
Qc8+ {[%clk 0:00:05.8]} 51... Kg7 {[%clk 0:00:12.3]} 52. Qc4 {[%clk 0:00:05.9]}
52... Kg8 {[%clk 0:00:12.2]} 53. g4 {[%clk 0:00:06.3]} 53... hxg4 {[%clk
0:00:11.9]} 54. Qxg4 {[%clk 0:00:07.2]} 54... Re8 {[%clk 0:00:10.4]} 55. h5
{[%clk 0:00:06.9]} 55... Kg7 {[%clk 0:00:10.4]} 56. hxg6 {[%clk 0:00:06.9]}
56... Rd8+ {[%clk 0:00:10.6]} 57. Ke4 {[%clk 0:00:05.1]} 57... fxg6 {[%clk
0:00:10.4]} 58. Qe6 {[%clk 0:00:05.1]} 58... Rf8 {[%clk 0:00:09.7]} 59. Qd6
{[%clk 0:00:04.7]} 59... Rf1 {[%clk 0:00:08]} 60. e6 {[%clk 0:00:04.5]} 60...
Re1+ {[%clk 0:00:08.4]} 61. Kf3 {[%clk 0:00:04.7]} 61... Rf1+ {[%clk 0:00:08.9]}
62. Kg2 {[%clk 0:00:04.7]} 62... Rf6 {[%clk 0:00:08.4]} 63. Qe7+ {[%clk
0:00:04.6]} 63... Kh6 {[%clk 0:00:08.2]} 64. Qxf6 {[%clk 0:00:05]} 64... a5
{[%clk 0:00:08]} 65. e7 {[%clk 0:00:05.5]} 1-0

[Event "Late-Titled-Tuesday-Blitz-January-23-2024"]
[Site "Chess.com"]
[Date "2024.01.23"]
[Round "10"]
[White "KorolDimitriy75"]
[Black "Chessdreamer2020"]
[Result "0-1"]
[WhiteElo "2352"]
[BlackElo "2531"]
[TimeControl "180+1"]
[EndTime "15:53:34 PST"]
[Termination "Chessdreamer2020 won on time"]

1. d4 {[%clk 0:03:00.9]} 1... d6 {[%clk 0:03:00]} 2. c4 {[%clk 0:03:01.5]} 2...
e5 {[%clk 0:02:59.4]} 3. Nc3 {[%clk 0:02:59.5]} 3... exd4 {[%clk 0:02:59.2]} 4.
Qxd4 {[%clk 0:03:00.4]} 4... Nc6 {[%clk 0:03:00.1]} 5. Qd2 {[%clk 0:03:00.8]}
5... Nf6 {[%clk 0:03:00.6]} 6. Nf3 {[%clk 0:03:00.8]} 6... a5 {[%clk 0:03:00]}
7. e3 {[%clk 0:02:59.3]} 7... a4 {[%clk 0:02:59.7]} 8. Be2 {[%clk 0:02:56.1]}
8... Be6 {[%clk 0:02:59.8]} 9. Nd5 {[%clk 0:02:48.1]} 9... Be7 {[%clk
0:02:48.2]} 10. O-O {[%clk 0:02:46.7]} 10... O-O {[%clk 0:02:48.5]} 11. Rd1
{[%clk 0:02:40.7]} 11... Bxd5 {[%clk 0:02:36.4]} 12. cxd5 {[%clk 0:02:40.4]}
12... Ne5 {[%clk 0:02:36.5]} 13. Nxe5 {[%clk 0:02:12.9]} 13... dxe5 {[%clk
0:02:37.4]} 14. Qc2 {[%clk 0:02:13.5]} 14... Bd6 {[%clk 0:02:33.7]} 15. e4
{[%clk 0:02:11.7]} 15... Nd7 {[%clk 0:02:31.3]} 16. Be3 {[%clk 0:02:10.5]} 16...
b6 {[%clk 0:02:29.7]} 17. Rac1 {[%clk 0:02:00.3]} 17... Nc5 {[%clk 0:02:21.6]}
18. Bb5 {[%clk 0:01:48.5]} 18... Ra5 {[%clk 0:02:19.4]} 19. Bc6 {[%clk
0:01:42.9]} 19... Qh4 {[%clk 0:02:13.4]} 20. f3 {[%clk 0:01:39.8]} 20... f5
{[%clk 0:02:10.2]} 21. b4 {[%clk 0:01:09.4]} 21... axb3 {[%clk 0:02:09.1]} 22.
axb3 {[%clk 0:01:10.3]} 22... Ra3 {[%clk 0:01:51.6]} 23. Bf2 {[%clk 0:01:01]}
23... Qg5 {[%clk 0:01:30.9]} 24. Rb1 {[%clk 0:00:28.8]} 24... fxe4 {[%clk
0:01:29.8]} 25. fxe4 {[%clk 0:00:28.6]} 25... Qf4 {[%clk 0:01:12.9]} 26. Re1
{[%clk 0:00:26.6]} 26... Nxb3 {[%clk 0:00:53]} 27. Bg3 {[%clk 0:00:20.6]} 27...
Nd4 {[%clk 0:00:21.7]} 28. Qc1 {[%clk 0:00:13.9]} 28... Qg4 {[%clk 0:00:16.9]}
29. Qd1 {[%clk 0:00:12.7]} 29... Rxg3 {[%clk 0:00:15.9]} 30. hxg3 {[%clk
0:00:12.1]} 30... Qxg3 {[%clk 0:00:16.8]} 31. Rf1 {[%clk 0:00:11.5]} 31... Qe3+
{[%clk 0:00:12.1]} 32. Kh2 {[%clk 0:00:10.7]} 32... Qh6+ {[%clk 0:00:11.5]} 33.
Kg1 {[%clk 0:00:10.9]} 33... Qe3+ {[%clk 0:00:11.5]} 34. Kh2 {[%clk 0:00:11]}
34... Qh6+ {[%clk 0:00:08.1]} 35. Kg1 {[%clk 0:00:10.9]} 35... Bc5 {[%clk
0:00:07.9]} 36. Rxf8+ {[%clk 0:00:09.9]} 36... Kxf8 {[%clk 0:00:08.8]} 37. g3
{[%clk 0:00:05]} 37... Nf5+ {[%clk 0:00:03.9]} 38. Kg2 {[%clk 0:00:01.6]} 38...
Ne3+ {[%clk 0:00:04.5]} 39. Kf3 {[%clk 0:00:02]} 39... Nxd1 {[%clk 0:00:05.4]}
40. Rxd1 {[%clk 0:00:02]} 40... Qe3+ {[%clk 0:00:06.3]} 41. Kg2 {[%clk
0:00:02.2]} 41... Qe2+ {[%clk 0:00:06.9]} 42. Kh3 {[%clk 0:00:02.5]} 42... Qxd1
{[%clk 0:00:07.8]} 43. d6 {[%clk 0:00:03.1]} 43... Qe2 {[%clk 0:00:06.4]} 44.
dxc7 {[%clk 0:00:04]} 44... Qh5+ {[%clk 0:00:04.7]} 45. Kg2 {[%clk 0:00:04]}
45... Qe2+ {[%clk 0:00:04.8]} 46. Kh3 {[%clk 0:00:04]} 46... Qh5+ {[%clk
0:00:05.3]} 47. Kg2 {[%clk 0:00:04.3]} 47... Qg4 {[%clk 0:00:05.7]} 48. Bb7
{[%clk 0:00:04.1]} 48... Qe2+ {[%clk 0:00:04.3]} 49. Kh3 {[%clk 0:00:04.3]}
49... Qf1+ {[%clk 0:00:04.6]} 50. Kg4 {[%clk 0:00:04]} 50... Qd1+ {[%clk
0:00:03.1]} 51. Kh4 {[%clk 0:00:03.6]} 51... Be7+ {[%clk 0:00:03.2]} 52. Kh3
{[%clk 0:00:03.5]} 52... Qd7+ {[%clk 0:00:03.6]} 53. Kg2 {[%clk 0:00:03]} 53...
Qxc7 {[%clk 0:00:04.5]} 54. Bd5 {[%clk 0:00:02.5]} 54... b5 {[%clk 0:00:05.4]}
55. Kf3 {[%clk 0:00:02.5]} 55... b4 {[%clk 0:00:06.3]} 56. Kg4 {[%clk
0:00:03.4]} 56... Qc3 {[%clk 0:00:07.2]} 57. Kf5 {[%clk 0:00:04.3]} 57... b3
{[%clk 0:00:08.1]} 58. Ke6 {[%clk 0:00:05.2]} 58... b2 {[%clk 0:00:08.9]} 59. g4
{[%clk 0:00:05]} 59... b1=Q {[%clk 0:00:09.8]} 60. g5 {[%clk 0:00:05.2]} 60...
Qb6+ {[%clk 0:00:10.7]} 61. Kf5 {[%clk 0:00:05.3]} 61... Qf3+ {[%clk 0:00:11.2]}
0-1

[Event "Late-Titled-Tuesday-Blitz-January-23-2024"]
[Site "Chess.com"]
[Date "2024.01.23"]
[Round "10"]
[White "DavidGavrilescu18"]
[Black "jk13"]
[Result "0-1"]
[WhiteElo "2807"]
[BlackElo "2682"]
[TimeControl "180+1"]
[EndTime "15:53:43 PST"]
[Termination "jk13 won by checkmate"]

1. e4 {[%clk 0:02:56.6]} 1... e5 {[%clk 0:03:00]} 2. h3 {[%clk 0:02:56.6]} 2...
Nf6 {[%clk 0:02:59.4]} 3. Nc3 {[%clk 0:02:56.9]} 3... Bc5 {[%clk 0:02:59]} 4.
Nf3 {[%clk 0:02:54.5]} 4... d6 {[%clk 0:02:57.3]} 5. d4 {[%clk 0:02:54.5]} 5...
exd4 {[%clk 0:02:56.5]} 6. Nxd4 {[%clk 0:02:55.4]} 6... O-O {[%clk 0:02:56.7]}
7. Nb3 {[%clk 0:02:55.1]} 7... Bb4 {[%clk 0:02:52.8]} 8. Bd3 {[%clk 0:02:53.2]}
8... Re8 {[%clk 0:02:52.9]} 9. O-O {[%clk 0:02:52.7]} 9... Bxc3 {[%clk
0:02:50.3]} 10. bxc3 {[%clk 0:02:53.6]} 10... Nxe4 {[%clk 0:02:50.5]} 11. Qf3
{[%clk 0:02:48.5]} 11... Nf6 {[%clk 0:02:43.9]} 12. Bg5 {[%clk 0:02:44]} 12...
Nbd7 {[%clk 0:02:44.4]} 13. Rae1 {[%clk 0:02:42]} 13... Rxe1 {[%clk 0:02:22.4]}
14. Rxe1 {[%clk 0:02:42.9]} 14... h6 {[%clk 0:02:23]} 15. Bh4 {[%clk 0:02:37.5]}
15... Ne5 {[%clk 0:02:10.1]} 16. Qg3 {[%clk 0:02:35.2]} 16... Bd7 {[%clk
0:01:55]} 17. Nd4 {[%clk 0:02:32.2]} 17... Kh8 {[%clk 0:01:34.1]} 18. Bf5 {[%clk
0:02:21.8]} 18... Bxf5 {[%clk 0:01:22.6]} 19. Nxf5 {[%clk 0:02:22.7]} 19... Ng6
{[%clk 0:01:23.1]} 20. Re7 {[%clk 0:02:11]} 20... Nh5 {[%clk 0:01:02.6]} 21. Qg4
{[%clk 0:01:54.3]} 21... Nxe7 {[%clk 0:00:22.7]} 22. Bxe7 {[%clk 0:01:52.5]}
22... Qd7 {[%clk 0:00:18.6]} 23. Qxh5 {[%clk 0:01:52.1]} 23... Qe6 {[%clk
0:00:19.3]} 24. Bh4 {[%clk 0:01:40.2]} 24... Re8 {[%clk 0:00:18.6]} 25. Qg4
{[%clk 0:01:32.8]} 25... Qg6 {[%clk 0:00:12.5]} 26. Qf3 {[%clk 0:01:20.8]} 26...
Re5 {[%clk 0:00:11.1]} 27. Ne3 {[%clk 0:01:18]} 27... Qe6 {[%clk 0:00:08.9]} 28.
Qxb7 {[%clk 0:01:16.4]} 28... Re4 {[%clk 0:00:05.7]} 29. Bg3 {[%clk 0:01:14.7]}
29... f5 {[%clk 0:00:05.9]} 30. Nf1 {[%clk 0:00:42.9]} 30... f4 {[%clk
0:00:05.9]} 31. Bh2 {[%clk 0:00:43.3]} 31... Re1 {[%clk 0:00:06]} 32. Qb5 {[%clk
0:00:37.7]} 32... g5 {[%clk 0:00:05.2]} 33. h4 {[%clk 0:00:37.8]} 33... Qe2
{[%clk 0:00:04.3]} 34. Qxe2 {[%clk 0:00:36.4]} 34... Rxe2 {[%clk 0:00:03.9]} 35.
hxg5 {[%clk 0:00:20.4]} 35... hxg5 {[%clk 0:00:04.8]} 36. g3 {[%clk 0:00:21]}
36... fxg3 {[%clk 0:00:05.1]} 37. Nxg3 {[%clk 0:00:19]} 37... Rxc2 {[%clk
0:00:06]} 38. Ne4 {[%clk 0:00:19.5]} 38... g4 {[%clk 0:00:06.1]} 39. Bf4 {[%clk
0:00:17.2]} 39... Rxa2 {[%clk 0:00:06.4]} 40. Nf6 {[%clk 0:00:15.2]} 40... a5
{[%clk 0:00:06.7]} 41. Be3 {[%clk 0:00:12.1]} 41... a4 {[%clk 0:00:06.8]} 42.
Nxg4 {[%clk 0:00:11.6]} 42... a3 {[%clk 0:00:07]} 43. c4 {[%clk 0:00:11.8]}
43... Kg8 {[%clk 0:00:07.2]} 44. Nf6+ {[%clk 0:00:11.7]} 44... Kf7 {[%clk
0:00:06.6]} 45. Nd5 {[%clk 0:00:12.6]} 45... Rc2 {[%clk 0:00:06.1]} 46. Nb4
{[%clk 0:00:04.3]} 46... Rxc4 {[%clk 0:00:06.4]} 47. Na2 {[%clk 0:00:04.7]}
47... Rc2 {[%clk 0:00:06.5]} 48. Nb4 {[%clk 0:00:05.2]} 48... Rb2 {[%clk
0:00:07]} 49. Nd3 {[%clk 0:00:05.2]} 49... Rb1+ {[%clk 0:00:07.4]} 50. Kg2
{[%clk 0:00:05.2]} 50... a2 {[%clk 0:00:08.1]} 51. Bd4 {[%clk 0:00:06.1]} 51...
a1=Q {[%clk 0:00:08.1]} 52. Bxa1 {[%clk 0:00:06.7]} 52... Rxa1 {[%clk 0:00:09]}
53. Nb4 {[%clk 0:00:07.4]} 53... c5 {[%clk 0:00:09]} 54. Nd3 {[%clk 0:00:07.6]}
54... c4 {[%clk 0:00:09.2]} 55. Nb4 {[%clk 0:00:07.7]} 55... Rb1 {[%clk
0:00:09.3]} 56. Nd5 {[%clk 0:00:07.6]} 56... Rd1 {[%clk 0:00:08.5]} 57. Ne3
{[%clk 0:00:07.3]} 57... c3 {[%clk 0:00:08]} 58. Kf3 {[%clk 0:00:08.2]} 58... c2
{[%clk 0:00:08.1]} 59. Nxc2 {[%clk 0:00:08.6]} 59... Ke6 {[%clk 0:00:07.5]} 60.
Ne3 {[%clk 0:00:08.8]} 60... Rd4 {[%clk 0:00:06.6]} 61. Ke2 {[%clk 0:00:09.1]}
61... Ra4 {[%clk 0:00:06.6]} 62. Kf3 {[%clk 0:00:09.1]} 62... d5 {[%clk
0:00:06.9]} 63. Ke2 {[%clk 0:00:09.6]} 63... d4 {[%clk 0:00:06.1]} 64. Nc2
{[%clk 0:00:08.9]} 64... Kd5 {[%clk 0:00:05.8]} 65. Kd2 {[%clk 0:00:08.3]} 65...
Kc4 {[%clk 0:00:04.7]} 66. Kc1 {[%clk 0:00:04.5]} 66... Kc3 {[%clk 0:00:04.4]}
67. Kd1 {[%clk 0:00:03.4]} 67... d3 {[%clk 0:00:04.3]} 68. Kc1 {[%clk
0:00:01.5]} 68... dxc2 {[%clk 0:00:03.9]} 69. f4 {[%clk 0:00:01.8]} 69... Ra1#
{[%clk 0:00:04.8]} 0-1

[Event "Late-Titled-Tuesday-Blitz-January-23-2024"]
[Site "Chess.com"]
[Date "2024.01.23"]
[Round "10"]
[White "GMJustin"]
[Black "gxbg2000"]
[Result "0-1"]
[WhiteElo "2300"]
[BlackElo "2140"]
[TimeControl "180+1"]
[EndTime "15:54:16 PST"]
[Termination "gxbg2000 won on time"]

1. d4 {[%clk 0:02:29.6]} 1... d5 {[%clk 0:02:59.3]} 2. c4 {[%clk 0:02:29.2]}
2... c6 {[%clk 0:02:59.2]} 3. Nf3 {[%clk 0:02:28]} 3... Nf6 {[%clk 0:02:59.3]}
4. e3 {[%clk 0:02:28]} 4... e6 {[%clk 0:02:59.8]} 5. Nbd2 {[%clk 0:02:15.1]}
5... g6 {[%clk 0:02:59.9]} 6. Bd3 {[%clk 0:02:13.1]} 6... Bg7 {[%clk 0:03:00.5]}
7. O-O {[%clk 0:02:11.8]} 7... Nbd7 {[%clk 0:03:01.1]} 8. b3 {[%clk 0:02:09.1]}
8... O-O {[%clk 0:03:01.2]} 9. Bb2 {[%clk 0:02:07.6]} 9... Re8 {[%clk
0:03:00.8]} 10. Qc2 {[%clk 0:02:04.2]} 10... b6 {[%clk 0:02:58.4]} 11. e4 {[%clk
0:02:01.1]} 11... dxe4 {[%clk 0:02:56.4]} 12. Nxe4 {[%clk 0:02:01]} 12... Nxe4
{[%clk 0:02:56.6]} 13. Bxe4 {[%clk 0:02:00.4]} 13... Bb7 {[%clk 0:02:56.8]} 14.
Ne5 {[%clk 0:01:54.2]} 14... Nf6 {[%clk 0:02:54.2]} 15. Bxc6 {[%clk 0:01:48.5]}
15... Bxc6 {[%clk 0:02:49.9]} 16. Nxc6 {[%clk 0:01:49.2]} 16... Qc7 {[%clk
0:02:50.6]} 17. Ne5 {[%clk 0:01:46.1]} 17... Rad8 {[%clk 0:02:47.3]} 18. Rad1
{[%clk 0:01:42.9]} 18... Qb7 {[%clk 0:02:43.7]} 19. Qe2 {[%clk 0:01:37.4]} 19...
Rd6 {[%clk 0:02:27]} 20. Qf3 {[%clk 0:01:28.3]} 20... Qxf3 {[%clk 0:02:25.3]}
21. Nxf3 {[%clk 0:01:28.5]} 21... Red8 {[%clk 0:02:25.4]} 22. Rfe1 {[%clk
0:01:24.2]} 22... h6 {[%clk 0:02:15.7]} 23. a4 {[%clk 0:01:23.3]} 23... Ne8
{[%clk 0:02:08.7]} 24. Kf1 {[%clk 0:01:17.9]} 24... Nc7 {[%clk 0:02:07.7]} 25.
Bc3 {[%clk 0:00:53.2]} 25... Na6 {[%clk 0:02:06.9]} 26. a5 {[%clk 0:00:49.9]}
26... bxa5 {[%clk 0:01:49.9]} 27. Bxa5 {[%clk 0:00:49.3]} 27... Rb8 {[%clk
0:01:49.8]} 28. Re3 {[%clk 0:00:40]} 28... Bf6 {[%clk 0:01:42.9]} 29. Red3
{[%clk 0:00:33]} 29... Rb7 {[%clk 0:01:38.3]} 30. Ne5 {[%clk 0:00:19.2]} 30...
Nb4 {[%clk 0:01:30.5]} 31. R3d2 {[%clk 0:00:06.6]} 31... Nc6 {[%clk 0:01:29.5]}
32. Nxc6 {[%clk 0:00:05.7]} 32... Rxc6 {[%clk 0:01:29.7]} 33. d5 {[%clk
0:00:05.9]} 33... exd5 {[%clk 0:01:28.9]} 34. cxd5 {[%clk 0:00:06.1]} 34... Rd6
{[%clk 0:01:28.1]} 35. b4 {[%clk 0:00:06.3]} 35... Bc3 {[%clk 0:01:23.6]} 36.
Rd3 {[%clk 0:00:04]} 36... Be5 {[%clk 0:01:09.3]} 37. Rc1 {[%clk 0:00:04.1]}
37... Kg7 {[%clk 0:01:08.8]} 38. Rc6 {[%clk 0:00:03.7]} 38... Rdd7 {[%clk
0:01:07.2]} 39. g3 {[%clk 0:00:03.1]} 39... Bd6 {[%clk 0:01:01.7]} 40. Rc4
{[%clk 0:00:03.3]} 40... h5 {[%clk 0:01:00.4]} 41. f4 {[%clk 0:00:03.5]} 41...
Rb5 {[%clk 0:00:55.9]} 42. Rcd4 {[%clk 0:00:02.4]} 42... h4 {[%clk 0:00:55]} 43.
Kg2 {[%clk 0:00:02.5]} 43... hxg3 {[%clk 0:00:54.7]} 44. hxg3 {[%clk 0:00:02.4]}
44... Kf6 {[%clk 0:00:48.8]} 45. Kf3 {[%clk 0:00:02.2]} 45... g5 {[%clk
0:00:46.6]} 46. Rc4 {[%clk 0:00:02.4]} 46... Kf5 {[%clk 0:00:44.7]} 47. Rc6
{[%clk 0:00:02.5]} 47... g4+ {[%clk 0:00:44.4]} 48. Kf2 {[%clk 0:00:02.2]} 48...
Bxb4 {[%clk 0:00:43.7]} 49. Bxb4 {[%clk 0:00:01.8]} 49... Rxb4 {[%clk
0:00:43.7]} 50. d6 {[%clk 0:00:01.8]} 50... Rb2+ {[%clk 0:00:43.1]} 51. Ke3
{[%clk 0:00:01.7]} 51... Rb1 {[%clk 0:00:41.1]} 52. Rc5+ {[%clk 0:00:01.7]}
52... Kg6 {[%clk 0:00:40]} 53. Rg5+ {[%clk 0:00:02]} 53... Kf6 {[%clk
0:00:40.3]} 54. Rxg4 {[%clk 0:00:02.3]} 54... Re1+ {[%clk 0:00:40.1]} 55. Kf2
{[%clk 0:00:02.2]} 55... Ra1 {[%clk 0:00:39.8]} 56. Rg5 {[%clk 0:00:02.1]} 56...
Ra6 {[%clk 0:00:37.9]} 57. Rgd5 {[%clk 0:00:02.1]} 57... Ke6 {[%clk 0:00:37.9]}
58. f5+ {[%clk 0:00:02.4]} 58... Kf6 {[%clk 0:00:37]} 59. g4 {[%clk 0:00:02.8]}
59... Ra2+ {[%clk 0:00:36.3]} 60. Kf3 {[%clk 0:00:03.2]} 60... a5 {[%clk
0:00:36.3]} 61. Kf4 {[%clk 0:00:03.4]} 61... a4 {[%clk 0:00:36.5]} 62. g5+
{[%clk 0:00:03.5]} 62... Kg7 {[%clk 0:00:37.4]} 63. f6+ {[%clk 0:00:03.2]} 63...
Kg6 {[%clk 0:00:36.7]} 64. Ra5 {[%clk 0:00:02.5]} 64... Rf2+ {[%clk 0:00:34.7]}
65. Ke3 {[%clk 0:00:02.3]} 65... Ra2 {[%clk 0:00:33.1]} 66. Rd4 {[%clk
0:00:02.7]} 66... a3 {[%clk 0:00:32.6]} 67. Rd3 {[%clk 0:00:02.6]} 67... Rg2
{[%clk 0:00:31.3]} 68. Raxa3 {[%clk 0:00:02]} 68... Rxg5 {[%clk 0:00:31.1]} 69.
Rd4 {[%clk 0:00:02.2]} 69... Kxf6 {[%clk 0:00:31.1]} 70. Raa4 {[%clk 0:00:02.3]}
70... Ke6 {[%clk 0:00:30.3]} 71. Kf4 {[%clk 0:00:02.6]} 71... Rf5+ {[%clk
0:00:29.5]} 72. Ke4 {[%clk 0:00:01.8]} 72... Re5+ {[%clk 0:00:29.6]} 73. Kf4
{[%clk 0:00:01.8]} 73... Rd5 {[%clk 0:00:29.3]} 74. Rxd5 {[%clk 0:00:01.8]}
74... Kxd5 {[%clk 0:00:29.7]} 75. Kf5 {[%clk 0:00:01.5]} 75... Kxd6 {[%clk
0:00:28.5]} 76. Rd4+ {[%clk 0:00:01.7]} 76... Ke7 {[%clk 0:00:28.3]} 77. Rxd7+
{[%clk 0:00:02]} 77... Kxd7 {[%clk 0:00:28.4]} 78. Kf6 {[%clk 0:00:02.6]} 78...
Ke8 {[%clk 0:00:29.3]} 79. Kf5 {[%clk 0:00:02.1]} 79... Ke7 {[%clk 0:00:30.2]}
80. Ke5 {[%clk 0:00:02]} 80... f6+ {[%clk 0:00:31.1]} 81. Kf5 {[%clk 0:00:01.5]}
81... Kf7 {[%clk 0:00:32]} 82. Kf4 {[%clk 0:00:01.8]} 82... Kg6 {[%clk
0:00:32.9]} 83. Kg4 {[%clk 0:00:01.7]} 83... f5+ {[%clk 0:00:33.5]} 84. Kf4
{[%clk 0:00:01.8]} 84... Kf6 {[%clk 0:00:34.4]} 85. Kf3 {[%clk 0:00:01.6]} 85...
Kg5 {[%clk 0:00:35.3]} 0-1